{"text_format":"1","workbook":"xlsx","n_sheets":1,"sheets":["Склад"],"not_rendered":{"charts":0,"images":0,"macros":1,"external_links":0,"defined_names":0,"comments":1,"pivot_tables":0},"unopened":[],"bounds":{"document_bytes":16777216,"sheet_cells":100000,"rows_first":2000,"rows_last":500,"rows_between":2000,"halvings":0,"cell_chars":16384,"cell_head_chars":4096},"cells_cut":0,"cells_raw":0,"read":"whole","date_system":"1900"}

{"sheet":"Склад","index":0,"n_rows":77,"n_cols":38,"rows_kept":77,"cut":false,"hidden":false,"merged":[[33,3,34,3],[33,4,34,4],[33,5,34,5],[53,3,54,3],[53,4,54,4],[53,5,54,5],[1,0,1,1],[0,0,0,1],[1,2,2,2],[19,0,19,1],[1,4,2,4],[1,3,2,3],[7,0,7,1],[12,0,12,1],[10,0,10,1],[9,0,9,1],[8,0,8,1],[2,0,2,1],[6,0,6,1],[5,0,5,1],[4,0,4,1],[3,0,3,1],[54,0,54,1],[59,0,59,1],[58,0,58,1],[57,0,57,1],[56,0,56,1],[55,0,55,1],[64,0,64,1],[63,0,63,1],[62,0,62,1],[61,0,61,1],[60,0,60,1],[32,0,32,1],[45,0,45,1],[77,0,77,1],[76,0,76,1],[75,0,75,1],[74,0,74,1],[73,0,73,1],[72,0,72,1],[71,0,71,1],[70,0,70,1],[69,0,69,1],[68,0,68,1],[67,0,67,1],[66,0,66,1],[65,0,65,1],[37,0,37,1],[36,0,36,1],[35,0,35,1],[34,0,34,1],[33,0,33,1],[42,0,42,1],[41,0,41,1],[40,0,40,1],[39,0,39,1],[38,0,38,1],[48,0,48,1],[47,0,47,1],[44,0,44,1],[43,0,43,1],[46,0,46,1],[53,0,53,1],[52,0,52,1],[51,0,51,1],[50,0,50,1],[49,0,49,1],[31,0,31,1],[30,0,30,1],[29,0,29,1],[28,0,28,1],[27,0,27,1],[26,0,26,1],[25,0,25,1],[24,0,24,1],[23,0,23,1],[22,0,22,1],[2,13,2,18],[21,0,21,1],[20,0,20,1],[18,0,18,1],[13,0,13,1],[11,0,11,1],[17,0,17,1],[16,0,16,1],[15,0,15,1],[14,0,14,1],[1,5,2,5],[1,6,2,6],[1,7,2,7],[1,10,2,10],[1,8,2,8],[1,9,2,9]]}
["Закончилось",null,"2021-03-30","  С3 - вручную или =СЕГОДНЯ()",null,null,"Проект решения",null,null,null,null,null,null,"изменяемые ячейки"]
["Кончается",null,"Начальное кол-во","На доставку и на Саммера","Ушло на заправку","Пришло с заправки","Ушло за день","Пришло за день","Пустые","На установке","Итого "]
["1.Газы",null,null,null,null,null,null,null,null,null,null,null,"На доставку и на Саммера","вносятся изменения в поля D, F-H, J. Как только происходит изменение даты в C1, макрос переносит данные \"Итого\" -> \"Начальное количество\" "]
["1.Углекислота",null,-583,46,null,null,51,null,50,null,{"$f":"(((C4+H4+F4)-J4)-G4)-D4","v":-680},null,null,null,null,null,null,null,null,null,null,null,null,null,null,null,null,null,null,null,null,null,null,null,null,null,null,10]
["2.Кислород",null,-11,null,null,null,2,null,null,null,-13,null,null,null,null,null,null,null,null,null,null,null,null,null,null,null,null,null,null,null,null,null,null,null,null,null,null,3]
["3.Свар. Смесь",null,5,null,null,null,null,null,null,null,5,null,null,null,null,null,null,null,null,null,null,null,null,null,null,null,null,null,null,null,null,null,null,null,null,null,null,5]
["4.Азот",null,0,null,null,null,null,null,null,null,0,null,null,null,null,null,null,null,null,null,null,null,null,null,null,null,null,null,null,null,null,null,null,null,null,null,null,0]
["5.Азот ОСЧ",null,-14,2,null,null,null,null,null,null,-16,null,null,null,null,null,null,null,null,null,null,null,null,null,null,null,null,null,null,null,null,null,null,null,null,null,null,0]
["6.Аргон",null,0,null,null,null,null,null,null,null,0,null,null,null,null,null,null,null,null,null,null,null,null,null,null,null,null,null,null,null,null,null,null,null,null,null,null,0]
["7.Аргон ВЧ",null,3,null,null,null,null,null,null,null,3,null,null,null,null,null,null,null,null,null,null,null,null,null,null,null,null,null,null,null,null,null,null,null,null,null,null,3]
["8.Ацетилен",null,-6,1,null,null,null,null,null,null,-7,null,null,null,null,null,null,null,null,null,null,null,null,null,null,null,null,null,null,null,null,null,null,null,null,null,null,1]
["9.Гелий",null,-68,null,null,null,34,null,null,null,-102,null,null,null,null,null,null,null,null,null,null,null,null,null,null,null,null,null,null,null,null,null,null,null,null,null,null,0]
["10.Биогон",null,2,null,null,null,null,null,null,null,2,null,null,null,null,null,null,null,null,null,null,null,null,null,null,null,null,null,null,null,null,null,null,null,null,null,null,2]
["11.Аммиак",null,1,null,null,null,null,null,null,null,1,null,null,null,null,null,null,null,null,null,null,null,null,null,null,null,null,null,null,null,null,null,null,null,null,null,null,1]
["12.Пропан",null,2,null,null,null,null,null,null,null,2,null,null,null,null,null,null,null,null,null,null,null,null,null,null,null,null,null,null,null,null,null,null,null,null,null,null,2]
["Новые и Аттест."]
["1.Углекислота",null,4,null,null,null,null,null,null,null,{"$f":"(((C17+H17+F17)-J17)-G17)-D17","v":4},null,null,null,null,null,null,null,null,null,null,null,null,null,null,null,null,null,null,null,null,null,null,null,null,null,null,4]
["2.Кислород",null,1,null,null,null,null,null,null,null,{"$f":"(((C18+H18+F18)-J18)-G18)-D18","v":1},null,null,null,null,null,null,null,null,null,null,null,null,null,null,null,null,null,null,null,null,null,null,null,null,null,null,1]
["3.Св. Смесь",null,1,null,null,null,null,null,null,null,{"$f":"(((C19+H19+F19)-J19)-G19)-D19","v":1},null,null,null,null,null,null,null,null,null,null,null,null,null,null,null,null,null,null,null,null,null,null,null,null,null,null,1]
["4.Аргон",null,1,null,null,null,null,null,null,null,{"$f":"(((C20+H20+F20)-J20)-G20)-D20","v":1},null,null,null,null,null,null,null,null,null,null,null,null,null,null,null,null,null,null,null,null,null,null,null,null,null,null,1]
["18/6 Баллоны"]
["1.Углекислота",null,20,null,null,null,null,null,null,null,{"$f":"(((C22+H22+F22)-J22)-G22)-D22","v":20},null,null,null,null,null,null,null,null,null,null,null,null,null,null,null,null,null,null,null,null,null,null,null,null,null,null,20]
["2.Кислород",null,1,null,null,null,null,null,null,null,{"$f":"(((C23+H23+F23)-J23)-G23)-D23","v":1},null,null,null,null,null,null,null,null,null,null,null,null,null,null,null,null,null,null,null,null,null,null,null,null,null,null,1]
["3.Аргон",null,4,null,null,null,null,null,null,null,{"$f":"(((C24+H24+F24)-J24)-G24)-D24","v":4},null,null,null,null,null,null,null,null,null,null,null,null,null,null,null,null,null,null,null,null,null,null,null,null,null,null,4]
["4.Азот",null,0,null,null,null,null,null,null,null,{"$f":"(((C25+H25+F25)-J25)-G25)-D25","v":0},null,null,null,null,null,null,null,null,null,null,null,null,null,null,null,null,null,null,null,null,null,null,null,null,null,null,0]
["5.Св. Смесь",null,6,null,null,null,null,null,null,null,{"$f":"(((C26+H26+F26)-J26)-G26)-D26","v":6},null,null,null,null,null,null,null,null,null,null,null,null,null,null,null,null,null,null,null,null,null,null,null,null,null,null,6]
["10л Баллоны"]
["1.Углекислота",null,19,null,null,null,null,null,null,null,{"$f":"(((C28+H28+F28)-J28)-G28)-D28","v":19},null,null,null,null,null,null,null,null,null,null,null,null,null,null,null,null,null,null,null,null,null,null,null,null,null,null,19]
["2.Кислород",null,0,null,null,null,null,null,null,null,{"$f":"(((C29+H29+F29)-J29)-G29)-D29","v":0},null,null,null,null,null,null,null,null,null,null,null,null,null,null,null,null,null,null,null,null,null,null,null,null,null,null,0]
["3.Аргон",null,3,null,null,null,null,null,null,null,{"$f":"(((C30+H30+F30)-J30)-G30)-D30","v":3},null,null,null,null,null,null,null,null,null,null,null,null,null,null,null,null,null,null,null,null,null,null,null,null,null,null,3]
["4.Азот",null,4,null,null,null,null,null,null,null,{"$f":"(((C31+H31+F31)-J31)-G31)-D31","v":4},null,null,null,null,null,null,null,null,null,null,null,null,null,null,null,null,null,null,null,null,null,null,null,null,null,null,4]
["5.Св. Смесь",null,3,null,null,null,null,null,null,null,{"$f":"(((C32+H32+F32)-J32)-G32)-D32","v":3},null,null,null,null,null,null,null,null,null,null,null,null,null,null,null,null,null,null,null,null,null,null,null,null,null,null,3]
["2. Проволока"]
[null,null,null,"Ушло за день","Пришло за день","Итого"]
["1.Deka"]
["5кг 0.8",null,0,null,null,{"$f":"(C36+E36)-D36","v":0}]
["5кг 1.0",null,0,null,null,0]
["5кг 1,2",null,0,null,null,0]
["5кг 1,6",null,0,null,null,0]
["15кг 0.8",null,6,null,null,6]
["15кг 1.0",null,5,null,null,5]
["15кг 1,2",null,4,null,null,4]
["15кг 1,6",null,0,null,null,0]
["2. Золотой мост"]
["5кг 0.8",null,7,null,null,{"$f":"(C45+E45)-D45","v":7}]
["5кг 1.0",null,5,null,null,5]
["5кг 1,2",null,6,null,null,6]
["5кг 1,6",null,0,null,null,0]
["15кг 0.8",null,1,null,null,1]
["15кг 1.0",null,14,null,null,14]
["15кг 1,2",null,6,null,null,6]
["15кг 1,6",null,0,null,null,0]
["3. Электроды"]
[null,null,null,"Ушло за день","Пришло за день","Итого"]
["1. Арсенал"]
["3.0 МР",null,22.5,null,null,{"$f":"(C56+E56)-D56","v":22.5}]
["3.0 АНО",null,77.5,null,null,{"$f":"(C57+E57)-D57","v":77.5}]
["4.0 АНО",null,80,null,null,{"$f":"(C58+E58)-D58","v":80}]
["2. ЛБ"]
["2.6LB",null,20,null,null,{"$f":"(C60+E60)-D60","v":20}]
["3.2LB",null,20,null,null,{"$f":"(C61+E61)-D61","v":20}]
["4.0LB",null,20,null,null,{"$f":"(C62+E62)-D62","v":20}]
["3. Esab"]
["ОК46 2.5",null,15.9,null,null,{"$f":"(C64+E64)-D64","v":15.9}]
["ОК46 3.0",null,5.3,null,null,{"$f":"(C65+E65)-D65","v":5.3}]
["ОК46 4.0",null,13.2,null,null,{"$f":"(C66+E66)-D66","v":13.2}]
["УОНИ 13/55 4.0",null,6,null,null,{"$f":"(C67+E67)-D67","v":6}]
["4. Орел"]
["3.25 АНО",null,15,null,null,{"$f":"(C69+E69)-D69","v":15}]
["4.0 АНО",null,0,null,null,{"$f":"(C70+E70)-D70","v":0}]
["5.СпецЭлектрод"]
["УОНИ 13/55 3.0",null,50,null,null,{"$f":"(C72+E72)-D72","v":50}]
["УОНИ 13/55 4.0",null,0,null,null,{"$f":"(C73+E73)-D73","v":0}]
["3.0 МР",null,50,null,null,{"$f":"(C74+E74)-D74","v":50}]
["6.Сзсм"]
["УОНИ 13/55 3.0",null,0,null,null,{"$f":"(C76+E76)-D76","v":0}]
["УОНИ 13/55 4.0",null,11,null,null,{"$f":"(C77+E77)-D77","v":11}]